[Event "20th Heraklion IT Open 2017"]
[Site "Heraklion"]
[Date "2017.04.19"]
[Round "4"]
[White "Brokalakis - Gounaris, Christos"]
[Black "Lianeris, Andreas"]
[Result "1/2-1/2"]
[ECO "E16"]
[WhiteElo "1773"]
[BlackElo "1543"]
[Annotator "NA RC"]
[PlyCount "119"]
[EventDate "2017.??.??"]
[EventType "swiss"]
[EventCountry "GRE"]
[SourceTitle "playchess.com"]
[Source "ChessBase"]
[SourceQuality "1"]
[TimeControl "40/5400+30:1800+30"]

1. d4 {[%emt 0:00:24]} Nf6 {[%emt 0:00:52]} 2. c4 {[%emt 0:00:20]} e6 {[%emt 0:00:26]} 3. Nf3 {[%emt 0:00:11]} Bb4+ {[%emt 0:01:31]} 4. Bd2 {[%emt 0:01:20]} Qe7 {[%emt 0:01:55]} 5. a3 {[%emt 0:03:23]} Bxd2+ {[%emt 0:01:45]} 6. Nbxd2 {[%emt 0:03:11]} O-O {[%emt 0:01:51]} 7. g3 {[%emt 0:09:15]} d6 {[%emt 0:03:47]} 8. Bg2 {[%emt 0:01:34]} Nc6 {[%emt 0:00:57]} 9. O-O {[%emt 0:06:05]} Re8 {[%emt 0:05:33]} 10. e4 {[%emt 0:04:57]} e5 {[%emt 0:03:33]} 11. d5 {[%emt 0:00:24]} Nb8 {[%emt 0:00:24]} 12. b4 {[%emt 0:00:58]} Bg4 {[%emt 0:05:32]} 13. h3 {[%emt 0:02:32]} Bh5 {[%emt 0:00:47]} 14. Qc2 {[%emt 0:01:07]} Nbd7 {[%emt 0:01:47]} 15. Rac1 {[%emt 0:01:35]} c5 {[%emt 0:20:38]} 16. dxc6 {[%emt 0:09:30]} bxc6 {[%emt 0:00:59]} 17. Nh4 {[%emt 0:00:20]} Bg6 {[%emt 0:03:09]} 18. Nxg6 {[%emt 0:03:52]} hxg6 {[%emt 0:00:20]} 19. Rfd1 {[%emt 0:01:58]} c5 {[%emt 0:11:17]} 20. Nb3 {[%emt 0:04:34]} Nf8 {[%emt 0:05:05]} 21. Qd2 {[%emt 0:04:05]} Rad8 {[%emt 0:01:47]} 22. Na5 {[%emt 0:02:39]} Qc7 {[%emt 0:03:31]} 23. b5 {[%emt 0:01:17]} Ne6 {[%emt 0:11:58]} 24. Nc6 {[%emt 0:00:42]} Rd7 {[%emt 0:00:11]} 25. h4 {[%emt 0:03:24]} Nd4 {[%emt 0:02:48]} 26. Nxd4 {[%emt 0:01:14]} exd4 {[%emt 0:00:18]} 27. Re1 {[%emt 0:08:30]} Rde7 {[%emt 0:01:39]} 28. Qd3 {[%emt 0:03:06]} Nd7 {[%emt 0:05:59]} 29. Qd2 {[%emt 0:03:30]} Nf6 {[%emt 0:00:32]} 30. Qd3 {[%emt 0:09:32]} Qa5 {[%emt 0:00:47]} 31. Re2 {[%emt 0:01:36]} Qa4 {[%emt 0:00:58]} 32. f3 {[%emt 0:02:38]} Nd7 {[%emt 0:03:10]} 33. Rb2 {[%emt 0:01:12]} Qa5 {[%emt 0:00:36]} 34. Qd2 {[%emt 0:03:49]} Qxd2 {[%emt 0:00:31]} 35. Rxd2 {[%emt 0:00:01]} f5 {[%emt 0:00:30]} 36. exf5 {[%emt 0:00:20]} gxf5 {[%emt 0:00:06]} 37. a4 {[%emt 0:01:56]} Re2 {[%emt 0:00:41]} 38. Rcd1 {[%emt 0:00:46]} Nb6 {[%emt 0:00:27]} 39. Bf1 {[%emt 0:00:33]} Rxd2 {[%emt 0:00:18]} 40. Rxd2 {[%emt 0:00:00]} Nxa4 {[%emt 0:00:14]} 41. Ra2 {[%emt 0:00:29]} Nc3 {[%emt 0:04:11]} 42. Rxa7 {[%emt 0:00:20]} Re1 43. Kf2 {[%emt 0:10:12]} Rb1 {[%emt 0:11:23]} 44. Bd3 {[%emt 0:04:11]} Rb4 {[%emt 0:02:50]} 45. Bxf5 {[%emt 0:02:16]} Nd1+ {[%emt 0:04:16]} 46. Ke2 {[%emt 0:06:09]} Ne3 {[%emt 0:00:08]} 47. Bd3 {[%emt 0:00:22]} Nxc4 {[%emt 0:01:50]} 48. Bxc4+ {[%emt 0:02:10]} Rxc4 {[%emt 0:00:04]} 49. b6 {[%emt 0:03:58]} Rb4 {[%emt 0:00:28]} 50. b7 {[%emt 0:00:01]} Kh7 {[%emt 0:00:21]} 51. Ra6 {[%emt 0:01:43]} Rxb7 {[%emt 0:01:31]} 52. Rxd6 {[%emt 0:00:02]} Rc7 {[%emt 0:00:23]} 53. Kd2 {[%emt 0:00:47]} Kg8 {[%emt 0:01:04]} 54. Rb6 {[%emt 0:01:41]} c4 {[%emt 0:03:00]} 55. Rd6 {[%emt 0:01:03]} d3 {[%emt 0:02:23]} 56. Kc3 {[%emt 0:00:16]} Kf8 {[%emt 0:01:05]} 57. Rd4 {[%emt 0:01:19]} Ke8 {[%emt 0:01:17]} 58. Re4+ {[%emt 0:00:30]} Kd8 {[%emt 0:00:18]} 59. g4 {[%emt 0:00:26]} Rd7 {[%emt 0:00:46]} 60. Re1 {[%emt 0:00:22]} 1/2-1/2

[Event "20th Heraklion IT Open 2017"]
[Site "Heraklion"]
[Date "2017.04.19"]
[Round "4"]
[White "Pelantakis, Mihail"]
[Black "Dhruv Easwar"]
[Result "1-0"]
[ECO "E09"]
[WhiteElo "1737"]
[BlackElo "1753"]
[Annotator "NA"]
[PlyCount "128"]
[EventDate "2017.??.??"]
[EventType "swiss"]
[EventCountry "GRE"]
[SourceTitle "playchess.com"]
[Source "ChessBase"]
[SourceQuality "1"]
[TimeControl "5400+30"]

1. d4 {[%emt 0:00:00]} d6 {[%emt 0:00:08]} 2. c4 {[%emt 0:00:51]} e5 {[%emt 0:00:13]} 3. dxe5 {[%emt 0:09:13]} dxe5 {[%emt 0:00:26]} 4. Qxd8+ {[%emt 0:00:21]} Kxd8 {[%emt 0:00:08] LiveBook: 362 Games} 5. Nc3 {[%emt 0:03:03]} Bb4 {[%emt 0:03:01] A41: 1 d4 d6: Tartakower System and Modern Defence} (5... Be6 6. b3 Nd7 7. Bb2 c6 8. e3 f6 9. Bd3 Nh6 10. h3 Kc7 11. O-O-O Nc5 12. Bc2 a5 13. Nge2 a4 14. g4 axb3 15. axb3 {½-½ (56) Lei,T (2480)-Cheparinov,I (2698) Ho Chi Minh City 2017}) 6. Bd2 {[%emt 0:04:35]} Be6 {[%emt 0:10:02]} 7. a3 $146 {[%emt 0:04:19]} (7. e3 Nd7 8. O-O-O c6 9. Nf3 f6 10. Rg1 Bxc3 11. Bxc3 Kc7 12. g4 Ne7 13. g5 {0-1 (50) Petrekanovic,M (2102)-Brankovic,V (2171) Belgrade 2015}) 7... Bxc3 {[%emt 0:01:22]} 8. Bxc3 {[%emt 0:00:34]} f6 {[%emt 0:05:14]} 9. e3 {[%emt 0:06:48]} Nd7 {[%emt 0:03:10]} 10. Nf3 {[%emt 0:02:25]} Ke8 {[%emt 0:03:27]} 11. Be2 {[%emt 0:05:41]} Ne7 {[%emt 0:10:23]} 12. Nd2 {[%emt 0:03:25]} Kf7 {[%emt 0:07:31]} 13. Bf3 {[%emt 0:11:31]} Rab8 {[%emt 0:07:42]} 14. O-O {[%emt 0:14:50]} Nc5 {[%emt 0:02:04]} 15. Rac1 {[%emt 0:04:58]} ({Better is} 15. Bh5+ $14 Kf8 16. a4) 15... Rhd8 {[%emt 0:08:02]} 16. Rfd1 {[%emt 0:01:41]} Rd7 {[%emt 0:06:05]} 17. b4 {[%emt 0:03:56]} Na4 {[%emt 0:00:39]} 18. Ba1 {[%emt 0:03:07]} Rd3 {[%emt 0:07:36]} 19. Nb1 {[%emt 0:03:04]} Rxd1+ {[%emt 0:02:16]} 20. Bxd1 {[%emt 0:00:10]} Nb6 {[%emt 0:00:09]} 21. Be2 {[%emt 0:00:30]} c5 {[%emt 0:07:05]} 22. Kf1 {[%emt 0:00:15]} Nc6 {[%emt 0:01:29]} 23. bxc5 {[%emt 0:04:16]} Na4 {[%emt 0:00:05]} 24. Bc3 {[%emt 0:01:51]} Nxc5 {[%emt 0:00:36]} 25. Rd1 {[%emt 0:01:52]} Na4 {[%emt 0:01:27]} 26. Ke1 {[%emt 0:02:44]} Rc8 {[%emt 0:02:06]} 27. Bf3 {[%emt 0:02:10]} Nb6 {[%emt 0:02:59]} 28. Bd5 {[%emt 0:02:53]} Nxc4 {[%emt 0:01:58]} 29. Bxc4 {[%emt 0:00:20]} Bxc4 {[%emt 0:00:04]} 30. Rd7+ {[%emt 0:00:05]} Ke6 {[%emt 0:02:45]} 31. Rxb7 {[%emt 0:00:23]} ({Don't choose} 31. Rxg7 $2 Bd3 32. Rxb7 (32. Nd2 $2 Ne7 33. Rxe7+ Kxe7 34. Bb4+ Kf7 $19) 32... Nd8 $19) 31... Nd8 {[%emt 0:01:17]} 32. Rb2 {[%emt 0:01:04]} Bd3 {[%emt 0:02:23]} 33. Kd2 {[%emt 0:00:09]} Bf1 {[%emt 0:00:17]} 34. g3 {[%emt 0:00:38]} Bg2 {[%emt 0:00:13]} 35. Ke2 {[%emt 0:01:02]} Be4 {[%emt 0:00:11]} 36. Bd2 {[%emt 0:00:44]} Rc2 {[%emt 0:01:03]} 37. Rb4 {[%emt 0:00:50]} Bg6 {[%emt 0:01:20]} 38. Nc3 {[%emt 0:00:32]} Nc6 {[%emt 0:00:10]} 39. Rc4 {[%emt 0:01:33]} Na5 {[%emt 0:00:39]} 40. Rb4 {[%emt 0:00:01]} Nc6 {[%emt 0:00:19]} 41. Rc4 {[%emt 0:00:01]} Kd7 {[%emt 0:01:02]} 42. Rc5 {[%emt 0:01:16]} Rb2 {[%emt 0:00:21]} 43. Rb5 {[%emt 0:00:33]} Rxb5 {[%emt 0:00:27]} 44. Nxb5 {[%emt 0:00:01]} a6 {[%emt 0:00:20]} 45. Nc3 {[%emt 0:00:01]} Kd6 {[%emt 0:00:10]} 46. Na4 {[%emt 0:01:37]} Kd5 {[%emt 0:00:57]} 47. Nb2 {[%emt 0:00:18]} Kc5 {[%emt 0:00:42]} 48. f3 {[%emt 0:00:39]} Bc2 {[%emt 0:00:37]} 49. Bc3 {[%emt 0:00:07]} Kb5 {[%emt 0:00:26]} 50. Kd2 {[%emt 0:00:12]} Bb3 {[%emt 0:00:11]} 51. Kd3 {[%emt 0:00:44]} a5 {[%emt 0:00:31]} 52. f4 {[%emt 0:00:12]} exf4 {[%emt 0:00:37]} 53. exf4 {[%emt 0:00:22]} Ne7 {[%emt 0:00:17]} 54. Bd4 {[%emt 0:00:21]} Nc6 {[%emt 0:00:31]} 55. Bc3 {[%emt 0:00:10]} Nd8 {[%emt 0:00:18]} 56. g4 {[%emt 0:01:45]} Ne6 {[%emt 0:00:20]} 57. Ke4 {[%emt 0:00:34]} Nc5+ {[%emt 0:00:05]} 58. Ke3 {[%emt 0:00:30]} Ne6 {[%emt 0:00:54]} 59. h4 {[%emt 0:00:15]} Bc2 {[%emt 0:00:41]} 60. Kd2 {[%emt 0:00:39]} Bb3 {[%emt 0:00:52]} 61. Ke3 {[%emt 0:00:07]} Bc2 {[%emt 0:00:05]} 62. Kd2 {[%emt 0:00:03]} Bb3 {[%emt 0:00:21]} 63. Ke3 {[%emt 0:00:01]} Bc2 {[%emt 0:00:40]} 64. Kd2 {[%emt 0:00:03]} Bb1 $11 1-0

[Event "20th Heraklion IT Open 2017"]
[Site "Heraklion"]
[Date "2017.04.19"]
[Round "4"]
[White "Papidakis, Georgios"]
[Black "Serpetsidaki, Eva"]
[Result "1/2-1/2"]
[ECO "D00"]
[WhiteElo "1618"]
[BlackElo "1693"]
[Annotator "NA"]
[PlyCount "89"]
[EventDate "2017.??.??"]
[EventType "swiss"]
[EventCountry "GRE"]
[SourceTitle "playchess.com"]
[Source "ChessBase"]
[SourceQuality "1"]
[TimeControl "7200+30"]

{Xeon X5430x2 Octal} 1. Nc3 {[%eval 0,1] [%emt 0:00:00]} c6 {[%eval 0,1] [%emt 0:00:00]} 2. d4 {[%eval 0,1] [%emt 0:00:00]} d5 {[%eval 0,1] [%emt 0:00:00]} 3. e4 {[%eval 0,1] [%emt 0:00:00]} dxe4 {[%eval 0,1] [%emt 0:00:00]} 4. Nxe4 {[%eval 0,1] [%emt 0:00:00]} Bf5 {[%eval 0,1] [%emt 0:00:00]} 5. Ng3 {[%eval 0,1] [%emt 0:00:00]} Bg6 {[%eval 0,1] [%emt 0:00:00]} 6. h4 {[%eval 0,1] [%emt 0:00:00]} h6 {[%eval 0,1] [%emt 0:00:00]} 7. Bc4 {[%eval 0,1] [%emt 0:00:00]} e6 {[%eval 0,1] [%emt 0:00:00]} 8. N1e2 {[%eval 0,1] [%emt 0:00:00]} Nf6 {[%eval 0,1] [%emt 0:00:00]} 9. Nf4 {[%eval 2,27] [%emt 0:04:41]} Bh7 {[%eval 10,29] [%emt 0:02:13] (Bh7)} 10. c3 {[%eval 0,28] [%emt 0:08:33] (Nfh5)} Bd6 {[%eval 21,28] [%emt 0:01:33] (Bd6)} 11. Bd3 {[%eval -3,28] [%emt 0:02:52] (Bd3)} O-O {[%eval 22,29] [%emt 0:02:32] (O-O)} 12. Bxh7+ {[%eval -2,26] [%emt 0:02:54] (Bxh7)} Kxh7 {[%eval 23,31] [%emt 0:02:23] (Kxh7)} 13. Nfh5 {[%eval -14,24] [%emt 0:00:39] (O-O)} Nbd7 {[%eval 15,30] [%emt 0:04:08] (Nbd7)} 14. Bg5 {[%eval -5,26] [%emt 0:02:28] (Nxf6)} Be7 {[%eval 20,33] [%emt 0:04:06] (Be7)} 15. Qe2 {[%eval -5,27] [%emt 0:06:20] (Nxf6)} b5 {[%eval 17,30] [%emt 0:07:57] (b5)} 16. Nxf6+ {[%eval -13,26] [%emt 0:03:38] (Nxf6)} Nxf6 {[%eval 0,32] [%emt 0:02:11] (Nxf6)} 17. O-O-O {[%eval -3,28] [%emt 0:01:48] (Bxf6)} a5 {[%eval 16,30] [%emt 0:04:13] (Kg8)} 18. Kb1 {[%eval -12,28] [%emt 0:02:56] (Kb1)} b4 {[%eval 0,32] [%emt 0:05:35] (b4)} 19. c4 {[%eval -12,28] [%emt 0:00:35] (c4)} Kg8 {[%eval 0,32] [%emt 0:02:35] (Kg8)} 20. d5 {[%eval -12,30] [%emt 0:02:23] (d5)} cxd5 {[%eval 2,36] [%emt 0:04:18] (cxd5)} 21. cxd5 {[%eval -12,30] [%emt 0:01:01] (cxd5)} exd5 {[%eval 0,36] [%emt 0:02:18] (exd5)} 22. Nf5 {[%eval -12,32] [%emt 0:02:28] (Nf5)} Re8 {[%eval 0,33] [%emt 0:01:50] (Re8)} 23. Rhe1 {[%eval -12,32] [%emt 0:00:38] (Qf3)} Bf8 {[%eval 0,37] [%emt 0:01:51] (hxg5)} 24. Qxe8 {[%eval 5,30] [%emt 0:02:34] (Qxe8)} Qxe8 {[%eval 0,39] [%emt 0:01:46] (Qxe8)} 25. Rxe8 {[%eval -7,36] [%emt 0:03:56] (Rxe8)} Nxe8 {[%eval 0,38] [%emt 0:01:14] (Nxe8)} 26. Be3 {[%eval -1,32] [%emt 0:00:37] (Be3)} Kh7 {[%eval 0,37] [%emt 0:01:58] (h5)} 27. Rxd5 {[%eval -1,32] [%emt 0:02:52] (Rxd5)} g6 {[%eval 0,38] [%emt 0:03:35] (g6)} 28. Nd4 {[%eval -1,30] [%emt 0:00:29] (Nd4)} Nf6 {[%eval 0,38] [%emt 0:02:18] (Nf6)} 29. Rb5 {[%eval -1,33] [%emt 0:04:28] (Rb5)} Ng4 {[%eval 0,38] [%emt 0:02:23] (Ng4)} 30. Kc2 {[%eval -1,30] [%emt 0:00:32] (Kc2)} h5 {[%eval 0,39] [%emt 0:03:56] (h5)} 31. Kd3 {[%eval -1,33] [%emt 0:03:00] (Kd3)} Be7 {[%eval 0,39] [%emt 0:03:03] (Ra7)} 32. Nf3 {[%eval -1,30] [%emt 0:02:52] (Nf3)} Nxe3 {[%eval 0,40] [%emt 0:03:58] (Nxe3)} 33. Kxe3 {[%eval -1,30] [%emt 0:00:36] (Kxe3)} Kg7 {[%eval 0,39] [%emt 0:03:56] (Ra7)} 34. g3 {[%eval 0,33] [%emt 0:02:36] (g3)} a4 {[%eval 0,41] [%emt 0:02:49] (a4)} 35. Ne5 {[%eval 0,32] [%emt 0:00:34] (Ne5)} a3 {[%eval 0,41] [%emt 0:02:23] (a3)} 36. b3 {[%eval 0,36] [%emt 0:02:41] (b3)} Rc8 {[%eval 0,39] [%emt 0:01:13] (Ra7)} 37. Rb7 {[%eval 0,33] [%emt 0:02:43] (Nc4)} Kf6 {[%eval 0,43] [%emt 0:04:01] (Kf6)} 38. Nc4 {[%eval 0,34] [%emt 0:02:30] (Kd2)} Bc5+ {[%eval 0,41] [%emt 0:01:57] (Bc5)} 39. Kf3 {[%eval 0,35] [%emt 0:01:05] (Ke2)} Ke6 {[%eval 0,41] [%emt 0:02:12] (Ke6)} 40. Ke2 {[%eval 0,36] [%emt 0:04:03] (Ke2)} f6 {[%eval 0,43] [%emt 0:01:31] (Re8)} 41. Kf3 {[%eval 0,34] [%emt 0:02:43] (Kf3)} Kf5 {[%eval 0,44] [%emt 0:05:30] (Rd8)} 42. Rd7 {[%eval 0,39] [%emt 0:03:08] (Rb5)} Ke6 {[%eval 0,39] [%emt 0:01:04] (Ke6)} 43. Rb7 {[%eval 0,36] [%emt 0:00:29] (Rd2)} Kf5 {[%eval 0,44] [%emt 0:04:23] (Rd8)} 44. Rb5 {[%eval 0,40] [%emt 0:04:22] (Rb5)} Ke6 {[%eval 0,51] [%emt 0:02:45] (Ke6)} 45. Rb7 {3-fold rep} 1/2-1/2

[Event "20th Heraklion IT Open 2017"]
[Site "Heraklion"]
[Date "2017.04.20"]
[Round "5"]
[White "Moshovakis, Aggelos"]
[Black "Wallace, John Paul"]
[Result "1/2-1/2"]
[ECO "B30"]
[WhiteElo "2030"]
[BlackElo "2404"]
[Annotator "ChessBase"]
[PlyCount "64"]
[EventDate "2017.??.??"]
[EventType "swiss"]
[EventCountry "GRE"]
[SourceTitle "playchess.com"]
[Source "ChessBase"]
[SourceQuality "1"]
[TimeControl "40/5400+30:1800+30"]

1. e4 {[%emt 0:00:00]} c5 {[%emt 0:00:05]} 2. Nf3 {[%emt 0:00:24]} Nc6 {[%emt 0:00:11]} 3. d3 {[%emt 0:00:26]} g6 {[%emt 0:00:37]} 4. g3 {[%emt 0:00:06]} Bg7 {[%emt 0:00:08]} 5. Bg2 {[%emt 0:00:04]} e6 {[%emt 0:03:31]} 6. O-O {[%emt 0:00:48]} Nge7 {[%emt 0:00:12]} 7. c3 {[%emt 0:00:35]} d5 {[%emt 0:02:05]} 8. Nbd2 {[%emt 0:03:30]} O-O {[%emt 0:00:36]} 9. Re1 {[%emt 0:01:50]} Qc7 {[%emt 0:10:43]} 10. exd5 {[%emt 0:06:43]} Nxd5 {[%emt 0:03:16]} 11. Nb3 {[%emt 0:00:36]} b6 {[%emt 0:00:52]} 12. d4 {[%emt 0:01:36]} cxd4 {[%emt 0:04:52]} 13. Nbxd4 {[%emt 0:00:27]} Nxd4 {[%emt 0:01:12]} 14. Nxd4 {[%emt 0:00:35]} Bb7 {[%emt 0:01:09]} 15. Qe2 {[%emt 0:01:40]} a6 {[%emt 0:05:39]} 16. Nc2 {[%emt 0:10:42]} Rac8 {[%emt 0:18:10]} 17. Ne3 {[%emt 0:01:20]} Nxe3 {[%emt 0:01:46]} 18. Bxe3 {[%emt 0:00:13]} Bxg2 {[%emt 0:06:10]} 19. Kxg2 {[%emt 0:00:07]} b5 {[%emt 0:00:15]} 20. a4 {[%emt 0:04:32]} bxa4 {[%emt 0:01:39]} 21. Qxa6 {[%emt 0:00:17]} Ra8 {[%emt 0:00:10]} 22. Qe2 {[%emt 0:00:32]} Qb7+ {[%emt 0:03:09]} 23. Kg1 {[%emt 0:00:08]} Rfb8 {[%emt 0:00:36]} 24. Ra2 {[%emt 0:00:42]} Qb3 {[%emt 0:08:26]} 25. Rea1 {[%emt 0:00:24]} a3 {[%emt 0:02:41]} 26. Rxa3 {[%emt 0:00:37]} Rxa3 {[%emt 0:00:22]} 27. Rxa3 {[%emt 0:00:12]} Qd5 {[%emt 0:00:30]} 28. Qd2 {[%emt 0:07:49]} Qe4 {[%emt 0:00:46]} 29. Ra7 {[%emt 0:06:04]} h5 {[%emt 0:00:23]} 30. Qd7 {[%emt 0:25:31]} Qb1+ {[%emt 0:03:57]} 31. Kg2 {[%emt 0:00:07]} Qe4+ {[%emt 0:00:06]} 32. Kg1 {[%emt 0:01:12]} Qb1+ {[%emt 0:00:07]} 1/2-1/2

[Event "20th Heraklion IT Open 2017"]
[Site "Heraklion"]
[Date "2017.04.20"]
[Round "5"]
[White "Hristodoulaki, Antonia"]
[Black "Damia, Angelo"]
[Result "1/2-1/2"]
[ECO "B08"]
[WhiteElo "1994"]
[BlackElo "2417"]
[Annotator "TA"]
[PlyCount "100"]
[EventDate "2017.??.??"]
[EventType "swiss"]
[EventCountry "GRE"]
[SourceTitle "playchess.com"]
[Source "ChessBase"]
[SourceQuality "1"]
[TimeControl "40/5400+30:1800+30"]

1. d4 {[%emt 0:07:19]} d6 {[%emt 0:01:10]} 2. Nf3 {[%emt 0:10:40]} g6 {[%emt 0:00:33]} 3. e4 {[%emt 0:04:17]} Bg7 {[%emt 0:00:06]} 4. Nc3 {[%emt 0:00:03]} Nf6 {[%emt 0:00:36]} 5. Be2 {[%emt 0:00:08]} a6 {[%emt 0:05:13]} 6. a4 {[%emt 0:00:07]} Nc6 {[%emt 0:00:10]} 7. h3 {[%emt 0:01:52]} d5 {[%emt 0:01:44]} 8. exd5 {[%emt 0:17:48]} Nb4 {[%emt 0:00:08]} 9. O-O {[%emt 0:02:11]} O-O {[%emt 0:03:21]} 10. Bg5 {[%emt 0:02:29]} Nbxd5 {[%emt 0:17:06]} 11. Nxd5 {[%emt 0:02:53]} Qxd5 {[%emt 0:00:17]} 12. Re1 {[%emt 0:03:15]} Rd8 {[%emt 0:10:58]} 13. Bd3 {[%emt 0:04:47]} Be6 {[%emt 0:03:14]} 14. Qe2 {[%emt 0:08:22]} c6 {[%emt 0:01:16]} 15. Rad1 {[%emt 0:12:34]} Re8 {[%emt 0:03:44]} 16. Bd2 {[%emt 0:05:12]} b5 {[%emt 0:02:56]} 17. a5 {[%emt 0:01:24]} Bf5 {[%emt 0:04:21]} 18. Bb4 {[%emt 0:02:43]} Nd7 {[%emt 0:03:24]} 19. Ne5 {[%emt 0:04:20]} Bxd3 {[%emt 0:02:36]} 20. Rxd3 {[%emt 0:00:07]} Nxe5 {[%emt 0:01:30]} 21. dxe5 {[%emt 0:00:10]} Qc4 {[%emt 0:00:04]} 22. Qd2 {[%emt 0:01:00]} c5 {[%emt 0:00:25]} 23. Ba3 {[%emt 0:00:55]} b4 {[%emt 0:00:29]} 24. b3 {[%emt 0:00:11]} Qb5 {[%emt 0:00:25]} 25. Bb2 {[%emt 0:00:13]} Qxa5 {[%emt 0:00:18]} 26. Rd1 {[%emt 0:00:25]} Qa2 {[%emt 0:01:58]} 27. c4 {[%emt 0:02:13]} Qa5 {[%emt 0:00:05]} 28. Rd7 {[%emt 0:00:21]} Qb6 {[%emt 0:01:11]} 29. Qd5 {[%emt 0:00:24]} Rac8 {[%emt 0:02:27]} 30. Rb7 {[%emt 0:04:14]} Qc6 {[%emt 0:00:39]} 31. Qxc6 {[%emt 0:00:25]} Rxc6 {[%emt 0:00:05]} 32. Rdd7 {[%emt 0:00:19]} Bf8 {[%emt 0:01:28]} 33. Kf1 {[%emt 0:00:50]} Ra8 {[%emt 0:00:58]} 34. Ke2 {[%emt 0:01:40]} a5 {[%emt 0:00:08]} 35. Kd3 {[%emt 0:00:26]} a4 {[%emt 0:01:58]} 36. bxa4 {[%emt 0:00:05]} Rca6 {[%emt 0:00:01]} 37. Rbc7 {[%emt 0:00:41]} e6 {[%emt 0:04:15]} 38. Rxf7 {[%emt 0:00:32]} Rd8+ {[%emt 0:00:39]} 39. Rfd7 {[%emt 0:00:51]} Rxd7+ {[%emt 0:00:32]} 40. Rxd7 {[%emt 0:00:00]} Rxa4 {[%emt 0:00:10]} 41. Kc2 {[%emt 0:00:25]} Ra8 {[%emt 0:01:58]} 42. Bc1 {[%emt 0:05:27]} Ra1 {[%emt 0:10:28]} 43. Rb7 {[%emt 0:01:38]} g5 {[%emt 0:06:06]} 44. g3 {[%emt 0:04:31]} Ra8 {[%emt 0:03:03]} 45. Rd7 {[%emt 0:01:24]} Ra2+ {[%emt 0:05:45]} 46. Bb2 {[%emt 0:00:25]} Bg7 {[%emt 0:00:05]} 47. Kb3 {[%emt 0:01:31]} Ra8 {[%emt 0:00:51]} 48. f4 {[%emt 0:03:51]} gxf4 {[%emt 0:02:13]} 49. gxf4 {[%emt 0:00:01]} Bh6 {[%emt 0:01:55]} 50. Rc7 {[%emt 0:03:46]} Bf8 {[%emt 0:02:39]} 1/2-1/2

[Event "20th Heraklion IT Open 2017"]
[Site "Heraklion"]
[Date "2017.04.20"]
[Round "5"]
[White "Sourgkounis, Angelos"]
[Black "Aggelakis, Ilias"]
[Result "1-0"]
[ECO "B30"]
[WhiteElo "1960"]
[BlackElo "1424"]
[Annotator "NA"]
[PlyCount "111"]
[EventDate "2017.??.??"]
[EventType "swiss"]
[EventCountry "GRE"]
[SourceTitle "playchess.com"]
[Source "ChessBase"]
[SourceQuality "1"]
[TimeControl "40/5400+30:1800+30"]

1. e4 {[%emt 0:00:00]} c5 {[%emt 0:00:05]} 2. Nf3 {[%emt 0:00:12]} Nc6 {[%emt 0:00:08]} 3. Bb5 {[%emt 0:00:14]} Nd4 {[%emt 0:00:20]} 4. Nxd4 {[%emt 0:00:09]} cxd4 {[%emt 0:00:06]} 5. O-O {[%emt 0:00:18]} e6 {[%emt 0:01:32] LiveBook: 21 Games} 6. c3 {[%emt 0:01:26] B30: Sicilian: 2...Nc6 3 Bb5, lines without ...g6} (6. d3 Ne7 7. Nd2 Nc6 8. Nc4 Qc7 9. Qf3 d6 10. Qg3 Bd7 11. Bd2 O-O-O 12. c3 dxc3 13. Bxc3 f6 14. Rac1 {1-0 (48) Smirnov,P (2610)-Chernyuk,M (2254) Voronezh 2012}) 6... a6 7. Bd3 {[%emt 0:01:56]} dxc3 {[%emt 0:02:14]} 8. dxc3 $146 {[%emt 0:00:59]} (8. Nxc3 d6 9. Bb1 g6 10. d4 Bg7 11. Be3 Bd7 12. Qd2 Ne7 13. Bh6 O-O 14. Bxg7 Kxg7 {½-½ (43) Kuspiel,M (1918)-Stadler,B (1810) Mecklenburg VP 2003}) 8... g6 {[%emt 0:00:15]} 9. Be3 {[%emt 0:02:29]} Bg7 {[%emt 0:00:11]} 10. Bc2 {[%emt 0:01:10]} (10. Nd2 $16) 10... Qc7 {[%emt 0:01:52]} 11. Qd2 {[%emt 0:00:31]} Nf6 {[%emt 0:02:38]} 12. Bf4 {[%emt 0:02:09]} e5 {[%emt 0:00:45]} 13. Bh6 {[%emt 0:00:48]} O-O {[%emt 0:00:06]} 14. Bxg7 {[%emt 0:00:42]} Kxg7 {[%emt 0:00:06]} 15. Rd1 {[%emt 0:00:06]} Re8 {[%emt 0:09:05]} 16. b3 {[%emt 0:01:40]} b5 {[%emt 0:03:04]} 17. Qd6 {[%emt 0:02:56]} Qxd6 {[%emt 0:00:05]} 18. Rxd6 {[%emt 0:00:00]} Re6 {[%emt 0:00:20]} 19. Rxe6 {[%emt 0:01:13]} dxe6 {[%emt 0:00:07]} 20. f3 {[%emt 0:02:06]} Bb7 {[%emt 0:00:14]} 21. Kf2 {[%emt 0:00:51]} Nd7 {[%emt 0:01:53]} 22. a4 {[%emt 0:02:27]} Nc5 {[%emt 0:01:17]} 23. axb5 {[%emt 0:02:54]} axb5 {[%emt 0:00:06]} 24. Rxa8 {[%emt 0:00:15]} Bxa8 {[%emt 0:00:08]} 25. b4 {[%emt 0:07:13]} Na6 {[%emt 0:00:05]} 26. Bd3 {[%emt 0:01:38]} Bc6 {[%emt 0:00:07]} 27. Ke3 {[%emt 0:00:51]} Kf8 {[%emt 0:00:32]} 28. Na3 {[%emt 0:00:48]} Nc7 {[%emt 0:00:18]} 29. c4 {[%emt 0:04:15]} bxc4 {[%emt 0:13:14]} 30. Bxc4 {[%emt 0:00:24]} Bb7 {[%emt 0:05:22]} 31. Kd3 {[%emt 0:06:04]} Ke7 {[%emt 0:00:12]} 32. Kc3 {[%emt 0:01:55]} f5 {[%emt 0:00:46]} 33. Bd3 {[%emt 0:00:16]} fxe4 {[%emt 0:00:19]} 34. fxe4 {[%emt 0:00:33]} Kd7 {[%emt 0:00:24]} 35. Nc4 {[%emt 0:03:34]} Nb5+ {[%emt 0:00:23]} 36. Kd2 {[%emt 0:00:29]} Nd6 {[%emt 0:04:40]} 37. Nxe5+ {[%emt 0:00:18]} Kc7 {[%emt 0:00:33]} 38. Ke3 {[%emt 0:00:26]} g5 {[%emt 0:01:18]} 39. Kd4 {[%emt 0:00:44]} Ba8 {[%emt 0:01:38]} 40. g3 $18 {[%emt 0:00:00]} Bb7 {[%emt 0:00:09]} 41. Nf3 {[%emt 0:02:56]} Nf7 {[%emt 0:00:26]} 42. h4 {[%emt 0:02:08]} gxh4 {[%emt 0:00:34]} 43. gxh4 {[%emt 0:00:09]} h6 {[%emt 0:00:06]} 44. Ne5 {[%emt 0:00:36]} Nd6 {[%emt 0:00:30]} 45. Ng4 {[%emt 0:00:14]} Nf7 {[%emt 0:00:11]} 46. Bc4 {[%emt 0:01:24]} Kd6 {[%emt 0:00:15]} 47. e5+ {[%emt 0:02:20]} Ke7 {[%emt 0:00:22]} 48. b5 {[%emt 0:02:22]} h5 {[%emt 0:01:45]} 49. Nf6 {[%emt 0:00:46]} Nh6 {[%emt 0:00:11]} 50. Bd3 {[%emt 0:01:58]} Bf3 {[%emt 0:01:18]} 51. b6 {[%emt 0:00:20]} Kd8 {[%emt 0:00:38]} 52. Kc5 {[%emt 0:00:35]} Ng4 {[%emt 0:00:30]} 53. Kd6 {[%emt 0:01:00]} Nxf6 {[%emt 0:03:55]} 54. exf6 {[%emt 0:00:08]} Ke8 {[%emt 0:00:45]} 55. Bg6+ {[%emt 0:00:11]} Kf8 {[%emt 0:00:08]} 56. Bxh5 {[%emt 0:00:10]} 1-0